fUSD/lending_fUSD_20260620
["ID","MTS","AMOUNT","RATE_DAILY","PERIOD"]
[425771172,1781886644000,-194.72792766,0.00026837,2]
[425771184,1781886644000,-1428.38747117,0.00026837,2]
[425771185,1781886644000,-1481.2378076,0.00026837,2]
[425771175,1781886644000,-1191.11104074,0.00026837,2]
[425771174,1781886644000,-1148.61238259,0.00026837,2]
[425771180,1781886644000,-644.79446245,0.00026837,2]
[425771178,1781886644000,-174.61919141,0.00026837,2]
[425771176,1781886644000,-1235.18214925,0.00026837,2]
[425771177,1781886644000,-1280.88388877,0.00026837,2]
[425771179,1781886644000,-403.22769917,0.00026837,2]
[425771183,1781886644000,-151.0,0.00026837,2]
[425771181,1781886644000,-1328.27659266,0.00026837,2]
[425771182,1781886644000,-1377.42282658,0.00026837,2]
[425771155,1781886644000,-188.1,0.00026296,2]
[425771186,1781886644000,-8882.6885148,0.00026837,2]
[425771167,1781886644000,-359.70382286,0.00026654,2]
[425771153,1781886644000,-222.63,0.00026027,7]
[425771148,1781886644000,-25743.0789,0.00025971,14]
[425771154,1781886644000,-150.0,0.00026093,2]
[425771132,1781886644000,-285.6,0.00025,2]
[425771133,1781886644000,-285.6,0.00025,2]
[425771188,1781886644000,-194.72792766,0.00026837,2]
[425771136,1781886644000,-362.37526009,0.00025397,2]
[425771134,1781886644000,-285.6,0.00025,2]
[425771135,1781886644000,-394.0,0.00025169,2]
[425771137,1781886644000,-151.0,0.00025459,2]
[425771138,1781886644000,-2319.72410669,0.00025459,2]
[425771131,1781886644000,-285.6,0.00025,2]
[425771140,1781886644000,-2731.91598138,0.00025471,14]
[425771139,1781886644000,-200.0,0.00025459,2]
[425771141,1781886644000,-8209.33543621,0.00025528,2]
[425771158,1781886644000,-1196.32285921,0.00026424,2]
[425771142,1781886644000,-4596.41756738,0.00025559,2]
[425771147,1781886644000,-19026.16797173,0.00025971,14]
[425771145,1781886644000,-7209.56949799,0.00025971,14]
[425771143,1781886644000,-200.0,0.00025639,2]
[425771146,1781886644000,-12718.53517203,0.00025971,14]
[425771150,1781886644000,-151.0,0.00026007,2]
[425771151,1781886644000,-2405.55389863,0.00026007,2]
[425771149,1781886644000,-506.0,0.00026,7]
[425771160,1781886644000,-372.174452,0.00026545,2]
[425771161,1781886644000,-376.4914,0.00026549,2]
[425771152,1781886644000,-200.0,0.00026007,2]
[425771157,1781886644000,-362.37526009,0.00026397,2]
[425771159,1781886644000,-4596.41756738,0.00026453,2]
[425771144,1781886644000,-200.85,0.0002589,2]
[425771130,1781886644000,-285.6,0.00025,2]
[425771189,1781886644000,-1536.04360648,0.00026837,2]
[425771192,1781886644000,-153.2923308,0.00026837,2]
[425771222,1781886644000,-500.0,0.00026837,2]
[425771232,1781886644000,-403.22769917,0.00026892,2]
[425771221,1781886644000,-152.0,0.00026837,2]
[425771223,1781886644000,-152.0,0.00026837,2]
[425771224,1781886644000,-500.0,0.00026837,2]
[425771226,1781886644000,-500.0,0.00026837,2]
[425771225,1781886644000,-152.0,0.00026837,2]
[425771228,1781886644000,-500.0,0.00026837,2]
[425771231,1781886644000,-500.0,0.00026837,2]
[425771229,1781886644000,-500.0,0.00026837,2]
[425771227,1781886644000,-500.0,0.00026837,2]
[425771230,1781886644000,-500.0,0.00026837,2]
[425771220,1781886644000,-152.0,0.00026837,2]
[425771233,1781886644000,-151.0,0.00026892,2]
[425771235,1781886644000,-403.22769917,0.00026947,2]
[425771239,1781886644000,-1055.67276494,0.00027,2]
[425771240,1781886644000,-530.0,0.00027,2]
[425771237,1781886644000,-285.6,0.0002699,2]
[425771241,1781886644000,-50000.0,0.00027,2]
[425771238,1781886644000,-250.0,0.00027,2]
[425771234,1781886644000,-5000.0,0.000269,9]
[425771242,1781886644000,-403.22769917,0.00027002,2]
[425771244,1781886644000,-403.22769917,0.00027057,2]
[425771191,1781886644000,-1592.87721992,0.00026837,2]
[425771245,1781886644000,-151.0,0.00027057,2]
[425771246,1781886644000,-2586.85809042,0.00027103,2]
[425771236,1781886644000,-151.0,0.00026947,2]
[425771211,1781886644000,-500.0,0.00026837,2]
[425771243,1781886644000,-151.0,0.00027002,2]
[425771219,1781886644000,-500.0,0.00026837,2]
[425771216,1781886644000,-152.0,0.00026837,2]
[425771197,1781886644000,-152.0,0.00026837,2]
[425771187,1781886644000,-194.72792766,0.00026837,2]
[425771196,1781886644000,-1712.93078311,0.00026837,2]
[425771194,1781886644000,-194.72792766,0.00026837,2]
[425771195,1781886644000,-644.40409162,0.00026837,2]
[425771193,1781886644000,-1651.81367706,0.00026837,2]
[425771199,1781886644000,-151.0,0.00026837,2]
[425771200,1781886644000,-152.0,0.00026837,2]
[425771209,1781886644000,-2054.15682156,0.00026837,2]
[425771198,1781886644000,-1776.30922209,0.00026837,2]
[425771205,1781886644000,-670.58624095,0.00026837,2]
[425771208,1781886644000,-152.0,0.00026837,2]
[425771190,1781886644000,-194.72792766,0.00026837,2]
[425771204,1781886644000,-1980.8648231,0.00026837,2]
[425771201,1781886644000,-1842.0326633,0.00026837,2]
[425771214,1781886644000,-152.0,0.00026837,2]
[425771218,1781886644000,-152.0,0.00026837,2]
[425771217,1781886644000,-500.0,0.00026837,2]
[425771215,1781886644000,-500.0,0.00026837,2]
[425771213,1781886644000,-500.0,0.00026837,2]
[425771210,1781886644000,-152.0,0.00026837,2]
[425771206,1781886644000,-578.20924308,0.00026837,2]
[425771202,1781886644000,-1910.18787185,0.00026837,2]
[425771203,1781886644000,-152.0,0.00026837,2]
[425771207,1781886644000,-151.0,0.00026837,2]
[425771212,1781886644000,-152.0,0.00026837,2]
[425771285,1781886645000,-498.68846969,0.00027397,2]
[425771284,1781886645000,-8288.99778684,0.0002739,2]
[425771291,1781886645000,-530.0,0.00027397,2]
[425771290,1781886645000,-3092.81,0.00027397,2]
[425771280,1781886645000,-151.0,0.00027385,2]
[425771278,1781886645000,-644.40409162,0.00027385,2]
[425771276,1781886645000,-201.93286098,0.00027385,2]
[425771273,1781886645000,-668.65185757,0.00027385,2]
[425771287,1781886645000,-1500.0,0.00027397,2]
[425771281,1781886645000,-403.22769917,0.00027387,2]
[425771277,1781886645000,-201.93286098,0.00027385,2]
[425771283,1781886645000,-4195.60009342,0.0002739,2]
[425771289,1781886645000,-300.0,0.00027397,2]
[425771279,1781886645000,-201.93286098,0.00027385,2]
[425771286,1781886645000,-241.58350673,0.00027397,7]
[425771282,1781886645000,-151.0,0.00027387,2]
[425771293,1781886645000,-23212.3,0.00027397,10]
[425771295,1781886645000,-30201.79,0.00027397,10]
[425771292,1781886645000,-519.89,0.00027397,2]
[425771296,1781886645000,-25168.16,0.00027397,10]
[425771303,1781886645000,-189.7249468,0.00027479,2]
[425771294,1781886645000,-36242.14,0.00027397,10]
[425771274,1781886645000,-151.0,0.00027385,2]
[425771288,1781886645000,-562.65358933,0.00027397,2]
[425771275,1781886645000,-9211.34798984,0.00027385,2]
[425771259,1781886645000,-173.8382464,0.00027261,2]
[425771272,1781886645000,-181.08010149,0.00027385,2]
[425771247,1781886645000,-200.0,0.00027103,2]
[425771248,1781886645000,-151.0,0.00027111,2]
[425771249,1781886645000,-403.22769917,0.00027112,2]
[425771251,1781886645000,-296.49787796,0.00027123,2]
[425771252,1781886645000,-244.94749264,0.00027143,2]
[425771253,1781886645000,-200.0,0.00027156,2]
[425771250,1781886645000,-151.0,0.00027112,2]
[425771254,1781886645000,-403.22769917,0.00027167,2]
[425771258,1781886645000,-151.0,0.00027222,2]
[425771255,1781886645000,-151.0,0.00027167,2]
[425771257,1781886645000,-403.22769917,0.00027222,2]
[425771256,1781886645000,-506.0,0.000272,8]
[425771262,1781886645000,-403.22769917,0.00027332,2]
[425771261,1781886645000,-151.0,0.00027277,2]
[425771260,1781886645000,-403.22769917,0.00027277,2]
[425771266,1781886645000,-6355.0458641,0.00027338,2]
[425771264,1781886645000,-60905.4795555,0.00027335,2]
[425771263,1781886645000,-151.0,0.00027332,2]
[425771265,1781886645000,-44857.2574431,0.00027338,2]
[425771268,1781886645000,-35249.076474,0.00027372,2]
[425771267,1781886645000,-4596.41756738,0.00027347,2]
[425771269,1781886645000,-155.30723179,0.00027385,2]
[425771270,1781886645000,-201.93286098,0.00027385,2]
[425771271,1781886645000,-158.27996193,0.00027385,2]
[425771304,1781886645000,-403.22769917,0.00027497,2]
[425771299,1781886645000,-403.22769917,0.00027442,2]
[425771297,1781886645000,-189.90705316,0.00027397,7]
[425771334,1781886645000,-582.46,0.00027779,7]
[425771336,1781886645000,-582.46,0.00027837,2]
[425771335,1781886645000,-582.46,0.00027808,30]
[425771332,1781886645000,-1191.42,0.00027726,7]
[425771337,1781886645000,-582.46,0.00027867,7]
[425771338,1781886645000,-575.64,0.00027868,7]
[425771339,1781886645000,-654.59,0.00027875,2]
[425771341,1781886645000,-1276.0,0.00027877,2]
[425771340,1781886645000,-654.38,0.00027876,2]
[425771342,1781886645000,-1360.0,0.00027877,2]
[425771354,1781886645000,-200.0,0.00027915,2]
[425771345,1781886645000,-3560.0,0.00027877,2]
[425771346,1781886645000,-1878.66,0.0002788,2]
[425771355,1781886645000,-582.46,0.00027925,2]
[425771343,1781886645000,-383.0,0.00027877,2]
[425771347,1781886645000,-1876.17,0.00027881,2]
[425771349,1781886645000,-1191.42,0.00027885,2]
[425771352,1781886645000,-575.64,0.00027897,30]
[425771348,1781886645000,-1188.57,0.00027883,2]
[425771351,1781886645000,-582.46,0.00027896,30]
[425771353,1781886645000,-216.24448118,0.000279,30]
[425771350,1781886645000,-1015.0,0.00027895,5]
[425771298,1781886645000,-150.0,0.00027398,2]
[425771331,1781886645000,-1188.57,0.00027724,7]
[425771333,1781886645000,-582.46,0.0002775,2]
[425771344,1781886645000,-1229.0,0.00027877,2]
[425771327,1781886645000,-654.38,0.00027715,7]
[425771301,1781886645000,-151.0,0.00027442,2]
[425771330,1781886645000,-582.46,0.00027721,30]
[425771305,1781886645000,-151.0,0.00027497,2]
[425771306,1781886645000,-205.22818764,0.000275,2]
[425771307,1781886645000,-500.0,0.000275,7]
[425771308,1781886645000,-175.83,0.00027522,7]
[425771310,1781886645000,-654.59,0.00027554,30]
[425771309,1781886645000,-203.38,0.00027522,7]
[425771312,1781886645000,-1878.66,0.00027561,30]
[425771315,1781886645000,-1191.42,0.00027567,30]
[425771314,1781886645000,-1188.57,0.00027565,30]
[425771313,1781886645000,-1876.17,0.00027562,30]
[425771311,1781886645000,-654.38,0.00027555,30]
[425771328,1781886645000,-1878.66,0.0002772,7]
[425771329,1781886645000,-1876.17,0.00027721,7]
[425771316,1781886645000,-582.46,0.00027575,2]
[425771325,1781886645000,-582.46,0.00027691,7]
[425771320,1781886645000,-582.46,0.00027633,30]
[425771326,1781886645000,-654.59,0.00027714,7]
[425771323,1781886645000,-151.0,0.00027659,2]
[425771321,1781886645000,-2682.57183977,0.00027651,2]
[425771322,1781886645000,-200.0,0.00027651,2]
[425771318,1781886645000,-372.0,0.00027611,5]
[425771317,1781886645000,-582.46,0.00027604,7]
[425771324,1781886645000,-582.46,0.00027662,2]
[425771394,1781886646000,-200.0,0.00028149,2]
[425771403,1781886646000,-201.93286098,0.00028206,2]
[425771404,1781886646000,-151.0,0.00028207,2]
[425771402,1781886646000,-1191.42,0.00028203,7]
[425771387,1781886646000,-582.46,0.00028071,30]
[425771390,1781886646000,-582.46,0.000281,2]
[425771388,1781886646000,-261.62723966,0.00028072,30]
[425771389,1781886646000,-575.64,0.000281,2]
[425771385,1781886646000,-5361.1482,0.00028066,2]
[425771393,1781886646000,-163.29832842,0.00028143,7]
[425771391,1781886646000,-575.78,0.0002813,7]
[425771398,1781886646000,-200.0,0.00028199,2]
[425771406,1781886646000,-500.0,0.00028247,2]
[425771400,1781886646000,-1876.17,0.00028201,7]
[425771397,1781886646000,-2781.82699784,0.00028199,2]
[425771395,1781886646000,-654.59,0.00028196,7]
[425771401,1781886646000,-1188.57,0.00028202,7]
[425771396,1781886646000,-654.38,0.00028197,7]
[425771405,1781886646000,-4596.41756738,0.00028242,2]
[425771413,1781886646000,-152.0,0.00028414,3]
[425771408,1781886646000,-162.69,0.0002829,7]
[425771407,1781886646000,-188.1,0.00028267,2]
[425771410,1781886646000,-168.42,0.00028367,2]
[425771392,1781886646000,-582.55,0.0002813,7]
[425771399,1781886646000,-1878.66,0.000282,7]
[425771386,1781886646000,-575.64,0.00028071,30]
[425771356,1781886646000,-575.64,0.00027926,2]
[425771383,1781886646000,-1191.42,0.00028044,30]
[425771364,1781886646000,-644.40409162,0.00027933,2]
[425771357,1781886646000,-209.40437684,0.00027933,2]
[425771360,1781886646000,-151.0,0.00027933,2]
[425771362,1781886646000,-209.40437684,0.00027933,2]
[425771363,1781886646000,-209.40437684,0.00027933,2]
[425771361,1781886646000,-9552.16786547,0.00027933,2]
[425771358,1781886646000,-158.27996193,0.00027933,2]
[425771367,1781886646000,-582.46,0.00027954,7]
[425771366,1781886646000,-151.0,0.00027933,2]
[425771365,1781886646000,-209.40437684,0.00027933,2]
[425771359,1781886646000,-187.78006524,0.00027933,2]
[425771381,1781886646000,-1188.57,0.00028043,30]
[425771368,1781886646000,-575.64,0.00027955,7]
[425771372,1781886646000,-50000.0,0.00028,2]
[425771371,1781886646000,-575.64,0.00027984,30]
[425771369,1781886646000,-1196.32285921,0.00027957,2]
[425771379,1781886646000,-575.64,0.00028042,7]
[425771373,1781886646000,-575.64,0.00028013,2]
[425771376,1781886646000,-654.59,0.00028036,30]
[425771375,1781886646000,-654.38,0.00028036,30]
[425771377,1781886646000,-1878.66,0.0002804,30]
[425771374,1781886646000,-582.46,0.00028013,2]
[425771378,1781886646000,-1876.17,0.00028041,30]
[425771380,1781886646000,-582.46,0.00028042,7]
[425771370,1781886646000,-582.46,0.00027983,30]
[425771414,1781886646000,-152.0,0.00028414,3]
[425771412,1781886646000,-506.0,0.000284,10]
[425771409,1781886646000,-1000.0,0.00028315,2]
[425771447,1781886646000,-234.0,0.000289,2]
[425771445,1781886646000,-150.0,0.00028767,2]
[425771442,1781886646000,-436.04539943,0.00028767,2]
[425771446,1781886646000,-1111.11,0.000288,30]
[425771444,1781886646000,-218.83778572,0.00028767,2]
[425771452,1781886646000,-166.12251207,0.00028961,30]
[425771454,1781886646000,-235.0,0.00028963,30]
[425771455,1781886646000,-183.0,0.00028963,30]
[425771459,1781886646000,-228.0,0.00028964,30]
[425771461,1781886646000,-269.0,0.00028964,30]
[425771460,1781886646000,-466.0,0.00028964,30]
[425771456,1781886646000,-780.0,0.00028963,30]
[425771457,1781886646000,-1405.0,0.00028963,30]
[425771462,1781886646000,-159.0,0.00028964,30]
[425771458,1781886646000,-251.0,0.00028964,30]
[425771463,1781886646000,-477.0,0.00028964,30]
[425771465,1781886646000,-300.0,0.00028965,30]
[425771464,1781886646000,-159.0,0.00028964,30]
[425771467,1781886646000,-963.70579635,0.00029,2]
[425771466,1781886646000,-859.0,0.00028965,30]
[425771469,1781886646000,-930.08426449,0.00029,2]
[425771471,1781886646000,-930.00021066,0.00029,2]
[425771470,1781886646000,-930.00421322,0.00029,2]
[425771468,1781886646000,-931.68528982,0.00029,2]
[425771415,1781886646000,-184.14876853,0.0002842,2]
[425771448,1781886646000,-200.0,0.000289,2]
[425771443,1781886646000,-500.0,0.00028767,2]
[425771453,1781886646000,-291.0,0.00028963,30]
[425771449,1781886646000,-300.34953668,0.000289,2]
[425771440,1781886646000,-562.65358933,0.00028766,2]
[425771416,1781886646000,-200.85,0.0002848,120]
[425771427,1781886646000,-217.15233878,0.00028481,2]
[425771417,1781886646000,-217.15233878,0.00028481,2]
[425771428,1781886646000,-644.40409162,0.00028481,2]
[425771419,1781886646000,-158.27996193,0.00028481,2]
[425771421,1781886646000,-194.72792766,0.00028481,2]
[425771423,1781886646000,-9905.59807649,0.00028481,2]
[425771425,1781886646000,-217.15233878,0.00028481,2]
[425771424,1781886646000,-151.0,0.00028481,2]
[425771426,1781886646000,-217.15233878,0.00028481,2]
[425771430,1781886646000,-188.22862864,0.000285,2]
[425771429,1781886646000,-151.0,0.00028481,2]
[425771411,1781886646000,-241.58350673,0.00028397,7]
[425771437,1781886646000,-2884.75459676,0.00028747,2]
[425771439,1781886646000,-151.0,0.00028755,2]
[425771434,1781886646000,-183.87687697,0.00028658,2]
[425771438,1781886646000,-200.0,0.00028747,2]
[425771435,1781886646000,-590.74,0.0002871,2]
[425771436,1781886646000,-393.82,0.0002871,2]
[425771433,1781886646000,-367.75375393,0.00028658,2]
[425771432,1781886646000,-735.50750786,0.00028658,2]
[425771431,1781886646000,-188.22862864,0.000285,2]
[425771441,1781886646000,-176.86187118,0.00028767,2]
[425771450,1781886646000,-200.0,0.000289,2]
[425771451,1781886646000,-497.0,0.00028939,5]
[425771507,1781886647000,-225.18697534,0.00029029,2]
[425771504,1781886647000,-201.93286098,0.00029029,2]
[425771514,1781886647000,-150.153,0.00029076,2]
[425771513,1781886647000,-150.0,0.00029076,2]
[425771508,1781886647000,-151.0,0.00029029,2]
[425771500,1781886647000,-152.0,0.00029015,7]
[425771499,1781886647000,-875.0,0.00029,7]
[425771505,1781886647000,-5956.08866473,0.00029029,2]
[425771502,1781886647000,-225.18697534,0.00029029,2]
[425771501,1781886647000,-188.67748225,0.00029029,2]
[425771512,1781886647000,-299.0,0.00029076,2]
[425771506,1781886647000,-225.18697532,0.00029029,2]
[425771517,1781886647000,-150.0,0.00029076,2]
[425771519,1781886647000,-152.0,0.00029085,7]
[425771516,1781886647000,-150.0,0.00029076,2]
[425771510,1781886647000,-644.40409162,0.00029029,2]
[425771515,1781886647000,-250.0,0.00029076,2]
[425771509,1781886647000,-225.18697533,0.00029029,2]
[425771520,1781886647000,-200.0,0.00029097,2]
[425771522,1781886647000,-2991.49051684,0.00029295,2]
[425771523,1781886647000,-200.0,0.00029295,2]
[425771530,1781886647000,-276.87085345,0.00029577,2]
[425771527,1781886647000,-191.29547668,0.00029575,2]
[425771521,1781886647000,-4596.41756738,0.00029136,2]
[425771528,1781886647000,-695.39793187,0.00029576,2]
[425771518,1781886647000,-1111.11,0.0002908,30]
[425771497,1781886647000,-153.18473039,0.00029,2]
[425771526,1781886647000,-1196.32285921,0.00029491,2]
[425771503,1781886647000,-158.27996193,0.00029029,2]
[425771472,1781886647000,-930.00001053,0.00029,2]
[425771473,1781886647000,-471.01501573,0.00029,2]
[425771474,1781886647000,-150.92644566,0.00029,3]
[425771476,1781886647000,-201.46008363,0.00029,2]
[425771479,1781886647000,-154.0,0.00029,4]
[425771482,1781886647000,-154.0,0.00029,4]
[425771475,1781886647000,-249.89015845,0.00029,2]
[425771477,1781886647000,-154.0,0.00029,4]
[425771478,1781886647000,-154.0,0.00029,4]
[425771480,1781886647000,-154.0,0.00029,4]
[425771481,1781886647000,-154.0,0.00029,4]
[425771483,1781886647000,-154.0,0.00029,4]
[425771485,1781886647000,-154.0,0.00029,4]
[425771484,1781886647000,-154.0,0.00029,4]
[425771487,1781886647000,-154.0,0.00029,4]
[425771490,1781886647000,-154.0,0.00029,4]
[425771488,1781886647000,-154.0,0.00029,4]
[425771486,1781886647000,-154.0,0.00029,4]
[425771489,1781886647000,-154.0,0.00029,4]
[425771492,1781886647000,-154.0,0.00029,4]
[425771493,1781886647000,-154.0,0.00029,4]
[425771491,1781886647000,-154.0,0.00029,4]
[425771494,1781886647000,-154.0,0.00029,4]
[425771496,1781886647000,-1050.0,0.00029,2]
[425771495,1781886647000,-154.0,0.00029,4]
[425771498,1781886647000,-1918.17,0.00029,120]
[425771524,1781886647000,-151.0,0.00029303,2]
[425771511,1781886647000,-151.0,0.00029029,2]
[425771531,1781886647000,-209.40437684,0.00029577,2]
[425771558,1781886647000,-2799.26839767,0.00029962,2]
[425771562,1781886647000,-780.0,0.00029963,30]
[425771565,1781886647000,-228.0,0.00029964,30]
[425771563,1781886647000,-1405.0,0.00029963,30]
[425771564,1781886647000,-251.0,0.00029964,30]
[425771568,1781886647000,-159.0,0.00029964,30]
[425771567,1781886647000,-269.0,0.00029964,30]
[425771566,1781886647000,-466.0,0.00029964,30]
[425771560,1781886647000,-235.0,0.00029963,30]
[425771561,1781886647000,-183.0,0.00029963,30]
[425771570,1781886647000,-159.0,0.00029964,30]
[425771572,1781886647000,-859.0,0.00029965,30]
[425771559,1781886647000,-291.0,0.00029963,30]
[425771574,1781886647000,-27157.43337522,0.0003,5]
[425771577,1781886647000,-4625.99,0.0003,2]
[425771575,1781886647000,-351.36540704,0.0003,7]
[425771578,1781886647000,-2500.0,0.0003,2]
[425771573,1781886647000,-369.93630998,0.0003,30]
[425771576,1781886647000,-2499.97,0.0003,2]
[425771579,1781886647000,-369.93630998,0.0003,30]
[425771580,1781886647000,-15000.0,0.0003,20]
[425771581,1781886647000,-174.0,0.0003,14]
[425771585,1781886647000,-230.35483293,0.0003003,2]
[425771583,1781886647000,-1120.08358852,0.0003003,2]
[425771586,1781886647000,-4596.41756738,0.0003003,2]
[425771529,1781886647000,-599.60298507,0.00029576,2]
[425771571,1781886647000,-300.0,0.00029965,30]
[425771569,1781886647000,-477.0,0.00029964,30]
[425771584,1781886647000,-190.55833792,0.0003003,2]
[425771556,1781886647000,-1111.11,0.0002992,30]
[425771552,1781886647000,-200.0,0.00029843,2]
[425771525,1781886647000,-1111.11,0.0002936,30]
[425771532,1781886647000,-233.5188934,0.00029577,2]
[425771533,1781886647000,-151.0,0.00029577,2]
[425771535,1781886647000,-151.0,0.00029577,2]
[425771534,1781886647000,-644.40409162,0.00029577,2]
[425771544,1781886647000,-11944.1525214,0.000297,2]
[425771536,1781886647000,-506.0,0.000296,11]
[425771543,1781886647000,-194.64603169,0.000297,2]
[425771538,1781886647000,-1918.17,0.00029685,120]
[425771541,1781886647000,-354.13270722,0.00029694,2]
[425771542,1781886647000,-7500.0,0.000297,10]
[425771582,1781886647000,-680.74,0.00030024,2]
[425771537,1781886647000,-1111.11,0.0002964,30]
[425771539,1781886647000,-259.23248972,0.00029694,2]
[425771554,1781886647000,-2000.0,0.000299,2]
[425771540,1781886647000,-466.6184815,0.00029694,2]
[425771557,1781886647000,-296.49787796,0.00029954,2]
[425771547,1781886647000,-306.03288546,0.00029751,2]
[425771550,1781886647000,-530511.94611966,0.000298,7]
[425771551,1781886647000,-10000.0,0.000298,10]
[425771553,1781886647000,-151.0,0.00029851,2]
[425771555,1781886647000,-12600.0,0.000299,10]
[425771549,1781886647000,-1397.0,0.00029776,5]
[425771546,1781886647000,-214.35443387,0.000297,2]
[425771545,1781886647000,-282.4241729,0.000297,2]
[425771548,1781886647000,-1495.0,0.00029776,5]
[425771595,1781886648000,-644.40409162,0.00030125,2]
[425771588,1781886648000,-10000.0,0.0003003,2]
[425771587,1781886648000,-3441.60557287,0.0003003,2]
[425771590,1781886648000,-376.4914,0.00030085,2]
[425771589,1781886648000,-200.0,0.00030045,2]
[425771591,1781886648000,-300.34953668,0.00030094,2]
[425771592,1781886648000,-217.15233878,0.00030125,2]
[425771593,1781886648000,-242.15909246,0.00030125,2]
[425771594,1781886648000,-151.0,0.00030125,2]
[425771597,1781886648000,-500.0,0.00030129,7]
[425771598,1781886648000,-500.0,0.00030129,7]
[425771599,1781886648000,-500.0,0.00030129,7]
[425771602,1781886648000,-500.0,0.00030129,7]
[425771610,1781886648000,-1.19065373,0.0003012,2]
[425771596,1781886648000,-151.0,0.00030125,2]
[425771608,1781886648000,-1859551.02640002,0.0003013,7]
[425771605,1781886648000,-359.71035403,0.00030129,7]
[425771607,1781886648000,-825146.59565176,0.0003013,7]
[425771609,1781886648000,-498.55408613,0.0002299,2]
[425771603,1781886648000,-500.0,0.00030129,7]
[425771604,1781886648000,-500.0,0.00030129,7]
[425771601,1781886648000,-500.0,0.00030129,7]
[425771600,1781886648000,-500.0,0.00030129,7]
[425771606,1781886648000,-4395.47272545,0.0003013,30]
[425771615,1781886649000,-634.7,0.00027602,7]
[425771612,1781886649000,-159.0,0.00021,2]
[425771614,1781886649000,-634.7,0.00027573,2]
[425771613,1781886649000,-8209.33543621,0.00026653,2]
[425771611,1781886649000,-159.0,0.0002,2]
[425771617,1781886650000,-634.7,0.0002766,2]
[425771618,1781886650000,-200.0,0.000279,10]
[425771616,1781886650000,-634.7,0.00027631,30]
[425771620,1781886650000,-497.3634324,0.0003012,2]
[425771621,1781886650000,-498.55408613,0.0003012,2]
[425771622,1781886650000,-65530.85925341,0.0003013,7]
[425771619,1781886650000,-5085.87,0.00027915,2]
[425771623,1781886789000,250.0,0.00014,2]
[425771624,1781886790000,300.0,0.00016,2]
[425771625,1781886911000,166.66,0.00021964,30]
[425771626,1781887088000,-175.6,0.00016438,2]
[425771627,1781887246000,-150.0,0.00016815,2]
[425771639,1781887511000,-5610.63,0.00037922,60]
[425771638,1781887511000,-5610.63,0.00037922,60]
[425771636,1781887511000,-179348.616026,0.00037922,60]
[425771637,1781887511000,-5610.63,0.00037922,60]
[425771635,1781887511000,-200000.0,0.00037922,60]
[425771632,1781887511000,-200000.0,0.00037922,60]
[425771631,1781887511000,-4208.96,0.00037922,120]
[425771633,1781887511000,-200000.0,0.00037922,60]
[425771628,1781887511000,-100000.0,0.00037922,30]
[425771629,1781887511000,-100000.0,0.00037922,30]
[425771630,1781887511000,-5000.0,0.00037922,120]
[425771640,1781887511000,-5610.63,0.00037922,60]
[425771634,1781887511000,-200000.0,0.00037922,60]
[425771643,1781887511000,-53879.0,0.00037922,30]
[425771641,1781887511000,-5610.63,0.00037922,60]
[425771644,1781887511000,-100000.0,0.00037922,30]
[425771642,1781887511000,-1127.0,0.00037922,30]
[425771657,1781887511000,-736.57664027,0.00037922,60]
[425771656,1781887511000,-736.57664027,0.00037922,60]
[425771653,1781887511000,-736.57664027,0.00037922,60]
[425771654,1781887511000,-736.57664027,0.00037922,60]